fUSD/lending_fUSD_20241122
["ID","MTS","AMOUNT","RATE_DAILY","PERIOD"]
[343030380,1732295459364,-509.47,0.00095999,120]
[343030381,1732295459374,-509.47,0.00095999,120]
[343030382,1732295459385,-509.47,0.00095999,120]
[343030383,1732295459394,-509.47,0.00095999,120]
[343030384,1732295459404,-509.47,0.00095999,120]
[343030385,1732295459414,-509.47,0.00095999,120]
[343030386,1732295459425,-509.55020289,0.00095999,120]
[343030387,1732295459437,-1568.1,0.00095999,120]
[343030388,1732295459447,-1568.1,0.00095999,120]
[343030389,1732295459457,-1568.1,0.00095999,120]
[343030390,1732295459467,-1568.1,0.00095999,120]
[343030391,1732295459477,-1568.1,0.00095999,120]
[343030392,1732295459486,-1568.1,0.00095999,120]
[343030393,1732295459497,-1568.20327987,0.00095999,120]
[343030394,1732295459507,-790.04,0.00095999,120]
[343030395,1732295459517,-790.04,0.00095999,120]
[343030396,1732295459527,-790.04,0.00095999,120]
[343030397,1732295459536,-790.04,0.00095999,120]
[343030398,1732295459545,-790.04,0.00095999,120]
[343030399,1732295459555,-790.04,0.00095999,120]
[343030400,1732295459565,-790.13054046,0.00095999,120]
[343030401,1732295459575,-500.0,0.00095999,120]
[343030402,1732295459585,-193.9225398,0.00095999,120]
[343030403,1732295459594,-2238.89,0.00095999,120]
[343030404,1732295459604,-1683.94,0.00095999,120]
[343030405,1732295459615,-2238.89,0.00095999,120]
[343030406,1732295459624,-2238.89,0.00095999,120]
[343030407,1732295459634,-1683.94,0.00095999,120]
[343030408,1732295459644,-2238.89,0.00095999,120]
[343030409,1732295459654,-1683.94,0.00095999,120]
[343030410,1732295459664,-2239.07286155,0.00095999,120]
[343030411,1732295459674,-1683.94,0.00095999,120]
[343030412,1732295459686,-1683.94,0.00095999,120]
[343030413,1732295459695,-1683.94,0.00095999,120]
[343030414,1732295459705,-1684.03708343,0.00095999,120]
[343030415,1732295459715,-1049.57,0.00095999,120]
[343030416,1732295459725,-1049.57,0.00095999,120]
[343030417,1732295459735,-1049.57,0.00095999,120]
[343030418,1732295459745,-1049.57,0.00095999,120]
[343030419,1732295459755,-1049.57,0.00095999,120]
[343030420,1732295459765,-1049.57,0.00095999,120]
[343030421,1732295459776,-1049.69307932,0.00095999,120]
[343030422,1732295459785,-500.10439999,0.00095999,120]
[343030423,1732295459795,-2834.96,0.00095999,120]
[343030424,1732295459805,-2834.96,0.00095999,120]
[343030425,1732295459815,-2834.96,0.00095999,120]
[343030426,1732295459825,-2834.96,0.00095999,120]
[343030427,1732295459835,-2834.98646641,0.00095999,120]
[343030428,1732295459844,-3183.23,0.00095999,120]
[343030429,1732295459854,-3183.23,0.00095999,120]
[343030430,1732295459863,-3183.23,0.00095999,120]
[343030431,1732295459873,-3183.23,0.00095999,120]
[343030432,1732295459883,-3183.23,0.00095999,120]
[343030433,1732295459893,-3183.23,0.00095999,120]
[343030434,1732295459903,-3183.45,0.00095999,120]
[343030435,1732295459913,-2014.64,0.00095999,120]
[343030436,1732295459922,-2014.64,0.00095999,120]
[343030437,1732295459935,-2014.64,0.00095999,120]
[343030438,1732295459945,-2014.64,0.00095999,120]
[343030439,1732295459955,-2014.64,0.00095999,120]
[343030440,1732295459965,-2014.64,0.00095999,120]
[343030441,1732295459976,-2014.74727625,0.00095999,120]
[343030442,1732295459985,-2343.23,0.00095999,120]
[343030443,1732295459996,-2343.23,0.00095999,120]
[343030444,1732295460005,-2343.23,0.00095999,120]
[343030445,1732295460016,-2343.23,0.00095999,120]
[343030446,1732295460027,-2343.23,0.00095999,120]
[343030447,1732295460037,-2343.23,0.00095999,120]
[343030448,1732295460047,-2343.23,0.00095999,120]
[343030449,1732295460057,-2343.23,0.00095999,120]
[343030450,1732295460148,-2343.2908,0.00095999,120]
[343030451,1732295460160,-467.44,0.00095999,120]
[343030452,1732295460171,-1980.68,0.00095999,120]
[343030453,1732295460183,-1980.68,0.00095999,120]
[343030454,1732295460199,-1980.68,0.00095999,120]
[343030455,1732295460211,-1980.68,0.00095999,120]
[343030456,1732295460222,-1980.68,0.00095999,120]
[343030457,1732295460233,-1980.68,0.00095999,120]
[343030458,1732295460244,-1980.77920207,0.00095999,120]
[343030459,1732295460255,-500.0,0.00095999,120]
[343030460,1732295460266,-556.85212415,0.00095999,120]
[343030461,1732295460284,-916.74,0.00095999,120]
[343030462,1732295460295,-916.74,0.00095999,120]
[343030463,1732295460305,-916.74,0.00095999,120]
[343030464,1732295460316,-916.74,0.00095999,120]
[343030465,1732295460326,-916.74,0.00095999,120]
[343030466,1732295460339,-916.74,0.00095999,120]
[343030467,1732295460354,-916.75260299,0.00095999,120]
[343030468,1732295460364,-2319.35,0.00095999,120]
[343030469,1732295460374,-2319.35,0.00095999,120]
[343030470,1732295460386,-2319.35,0.00095999,120]
[343030471,1732295460396,-2319.35,0.00095999,120]
[343030472,1732295460406,-2319.35,0.00095999,120]
[343030473,1732295460416,-2319.35,0.00095999,120]
[343030474,1732295460425,-2319.35,0.00095999,120]
[343030475,1732295460436,-2319.35,0.00095999,120]
[343030476,1732295460446,-2319.42325822,0.00095999,120]
[343030477,1732295460456,-1393.32,0.00095999,120]
[343030478,1732295460466,-1393.32,0.00095999,120]
[343030479,1732295460476,-1393.32,0.00095999,120]
[343030480,1732295460486,-1393.32,0.00095999,120]
[343030481,1732295460497,-1393.39390119,0.00095999,120]
[343030482,1732295460506,-4587.14,0.00095999,120]
[343030483,1732295460516,-4587.14,0.00095999,120]
[343030484,1732295460526,-4587.14,0.00095999,120]
[343030485,1732295460536,-4587.14,0.00095999,120]
[343030486,1732295460545,-4587.14,0.00095999,120]
[343030487,1732295460555,-4587.14,0.00095999,120]
[343030488,1732295460564,-4587.15249939,0.00095999,120]
[343030489,1732295460574,-697.78,0.00095999,120]
[343030490,1732295460583,-697.78,0.00095999,120]
[343030491,1732295460593,-697.78,0.00095999,120]
[343030492,1732295460601,-697.78,0.00095999,120]
[343030493,1732295460612,-697.98,0.00095999,120]
[343030494,1732295460622,-8282.3,0.00095999,120]
[343030495,1732295460632,-8282.3,0.00095999,120]
[343030496,1732295460642,-8282.3,0.00095999,120]
[343030497,1732295460652,-8282.3,0.00095999,120]
[343030498,1732295460662,-8282.3,0.00095999,120]
[343030499,1732295460672,-8282.3,0.00095999,120]
[343030500,1732295460685,-8282.46993641,0.00095999,120]
[343030501,1732295460694,-100000.0,0.00096,82]
[343030502,1732295460704,-12499.97,0.00096,120]
[343030503,1732295460714,-15054.50521085,0.00096,120]
[343030504,1732295460724,-1280754.12893066,0.00096,120]
[343030505,1732295460734,-5156.43,0.00096,120]
[343030506,1732295460744,-5000.0,0.00096,120]
[343030507,1732295460754,-5000.0,0.00096,120]
[343030508,1732295460763,-5000.0,0.00096,120]
[343030509,1732295460773,-5000.0,0.00096,120]
[343030510,1732295460783,-5000.0,0.00096,120]
[343030511,1732295460792,-5000.0,0.00096,120]
[343030512,1732295460802,-5000.0,0.00096,120]
[343030513,1732295460811,-5000.0,0.00096,120]
[343030514,1732295460820,-5000.0,0.00096,120]
[343030515,1732295460830,-5000.0,0.00096,120]
[343030516,1732295460839,-5000.0,0.00096,120]
[343030517,1732295460849,-5000.0,0.00096,120]
[343030518,1732295460859,-5000.0,0.00096,120]
[343030519,1732295460868,-5000.0,0.00096,120]
[343030520,1732295460878,-5000.0,0.00096,120]
[343030521,1732295460888,-5000.0,0.00096,120]
[343030522,1732295460898,-5000.0,0.00096,120]
[343030523,1732295460908,-5000.0,0.00096,120]
[343030524,1732295460917,-1064.28580405,0.0009604,120]
[343030525,1732295460929,-1098.3108934,0.0009604,120]
[343030526,1732295460940,-419.75906655,0.00096055,120]
[343030527,1732295460950,-765.74205276,0.00096093,120]
[343030528,1732295460961,-324.87388051,0.00096093,120]
[343030529,1732295460971,-200.0,0.00096095,120]
[343030530,1732295460982,-765.74205276,0.00096096,120]
[343030531,1732295460992,-8042.46324163,0.000961,120]
[343030532,1732295461002,-3995.028129,0.00096108,120]
[343030533,1732295461013,-3995.028129,0.00096155,120]
[343030534,1732295461023,-324.87388051,0.00096182,120]
[343030535,1732295461033,-419.75906655,0.00096189,120]
[343030536,1732295461044,-419.75906655,0.000962,120]
[343030537,1732295461054,-10000.0,0.000962,120]
[343030538,1732295461063,-324.87388051,0.00096202,120]
[343030539,1732295461073,-183.0,0.00096208,120]
[343030540,1732295461083,-765.74205276,0.00096223,120]
[343030541,1732295461093,-150.0,0.00096292,120]
[343030542,1732295461103,-200.0,0.00096307,120]
[343030543,1732295461113,-765.74205276,0.00096345,120]
[343030544,1732295461124,-3995.028129,0.00096391,120]
[343030545,1732295461134,-50000.0,0.000964,120]
[343030546,1732295461143,-10000.0,0.000964,120]
[343030547,1732295461152,-200.0,0.0009641,120]
[343030548,1732295461162,-324.87388051,0.00096413,120]
[343030549,1732295461174,-200.0,0.00096443,120]
[343030550,1732295461192,-200.0,0.00096447,120]
[343030551,1732295461202,-419.75906655,0.00096452,120]
[343030552,1732295461212,-419.75906655,0.00096505,120]
[343030553,1732295461223,-324.87388051,0.00096561,120]
[343030554,1732295461233,-3995.028129,0.00096567,120]
[343030555,1732295461243,-3995.028129,0.00096576,120]
[343030556,1732295461253,-765.74205276,0.00096581,120]
[343030557,1732295461263,-5942.0,0.00096594,120]
[343030558,1732295461273,-169.38609537,0.0009666,120]
[343030559,1732295461283,-299.9527354,0.0009684,120]
[343030560,1732295461293,-196.34773269,0.00096841,28]
[343030561,1732295461303,-7500.0,0.000969,120]
[343030562,1732295461315,-50000.0,0.000969,120]
[343030563,1732295461325,-600.0,0.000969,35]
[343030564,1732295461335,-211.0,0.0009692,120]
[343030565,1732295461351,-433.48,0.00096941,60]
[343030566,1732295461361,-167.8,0.00096957,2]
[343030567,1732295461372,-473.809,0.0009699,120]
[343030568,1732295461382,-100000.0,0.00097,83]
[343030569,1732295461392,-4687.553569,0.00097,120]
[343030570,1732295461404,-30000.0,0.00097,120]
[343030571,1732295461414,-1075.04237602,0.0009702,120]
[343030572,1732295461424,-1024.63656395,0.0009702,120]
[343030573,1732295461436,-764.68,0.00097041,60]
[343030574,1732295461446,-433.48,0.00097041,60]
[343030575,1732295461455,-764.68,0.00097041,60]
[343030576,1732295461466,-764.68,0.00097041,60]
[343030577,1732295461476,-433.48,0.00097041,60]
[343030578,1732295461486,-433.48,0.00097041,60]
[343030579,1732295461496,-764.68,0.00097041,60]
[343030580,1732295461506,-764.68,0.00097041,60]
[343030581,1732295461516,-764.68,0.00097041,60]
[343030582,1732295461526,-764.68,0.00097041,60]
[343030583,1732295461536,-183.0,0.0009718,120]
[343030584,1732295461545,-558.96303234,0.0009718,120]
[343030585,1732295461555,-150.0,0.00097194,120]
[343030586,1732295461565,-50000.0,0.000974,120]
[343030587,1732295461574,-385.19,0.00097425,120]
[343030588,1732295461583,-564.0,0.00097496,120]
[343030589,1732295461593,-1256.0,0.00097496,120]
[343030590,1732295461603,-2004.234,0.00097496,120]
[343030591,1732295461611,-3810.86883344,0.000975,120]
[343030592,1732295461620,-2722.76058807,0.000975,120]
[343030593,1732295461630,-30000.0,0.000977,120]
[343030594,1732295461640,-10000.0,0.000978,120]
[343030595,1732295461650,-1040.65922872,0.00097845,2]
[343030596,1732295461660,-640.42671641,0.00097845,2]
[343030597,1732295461671,-1231.9806036,0.000979,30]
[343030598,1732295461682,-22475.50628796,0.000979,120]
[343030599,1732295461692,-50000.0,0.000979,120]
[343030600,1732295461701,-1000.0,0.000979,21]
[343030601,1732295461711,-100000.0,0.00098,89]
[343030602,1732295461722,-7499.99,0.00098,120]
[343030603,1732295461732,-20000.0,0.00098,120]
[343030604,1732295461741,-529.99,0.00098,120]
[343030605,1732295461822,-7499.99,0.00098,120]
[343030606,1732295461832,-721.0,0.00098,120]
[343030607,1732295461842,-8087.0,0.00098,120]
[343030608,1732295461852,-37766.98077245,0.00098,100]
[343030609,1732295461862,-7499.99,0.00098,120]
[343030610,1732295461872,-7499.99,0.00098,120]
[343030611,1732295461881,-7499.99,0.00098,120]
[343030612,1732295461891,-30000.0,0.00098,120]
[343030613,1732295461901,-7499.99,0.00098,120]
[343030614,1732295461911,-7499.99,0.00098,120]
[343030615,1732295461920,-7500.0,0.00098,120]
[343030616,1732295461930,-378.7282,0.0009801,120]
[343030617,1732295461940,-433.48,0.00098041,60]
[343030618,1732295461950,-150.0,0.00098097,120]
[343030619,1732295461960,-183.0,0.00098152,120]
[343030620,1732295461970,-283.96,0.0009835,120]
[343030621,1732295461980,-50000.0,0.000984,120]
[343030622,1732295461990,-500.0,0.00098414,120]
[343030623,1732295461999,-1000.0,0.000985,21]
[343030624,1732295462009,-20000.0,0.000985,120]
[343030625,1732295462019,-378.72821,0.0009851,120]
[343030626,1732295462029,-20000.0,0.000986,120]
[343030627,1732295462039,-5000.0,0.0009863,70]
[343030628,1732295462049,-150.0,0.00098671,90]
[343030629,1732295462059,-150.0,0.00098674,90]
[343030630,1732295462069,-150.0,0.00098677,90]
[343030631,1732295462079,-300.0,0.0009868,90]
[343030632,1732295462089,-150.0,0.00098686,90]
[343030633,1732295462100,-150.0,0.00098692,90]
[343030634,1732295462110,-150.0,0.00098693,90]
[343030635,1732295462120,-300.0,0.00098699,90]
[343030636,1732295462130,-150.0,0.00098701,90]
[343030637,1732295462140,-150.0,0.00098707,90]
[343030638,1732295462150,-150.0,0.00098717,90]
[343030639,1732295462160,-150.0,0.00098718,90]
[343030640,1732295462170,-150.0,0.00098721,90]
[343030641,1732295462180,-150.0,0.00098727,90]
[343030642,1732295462192,-150.0,0.00098731,90]
[343030643,1732295462202,-150.0,0.00098733,90]
[343030644,1732295462213,-150.0,0.00098739,90]
[343030645,1732295462223,-300.0,0.00098742,90]
[343030646,1732295462233,-150.0,0.00098745,90]
[343030647,1732295462243,-150.0,0.00098746,90]
[343030648,1732295462252,-150.0,0.00098749,90]
[343030649,1732295462262,-150.0,0.0009875,90]
[343030650,1732295462272,-150.0,0.00098759,90]
[343030651,1732295462281,-150.0,0.0009876,90]
[343030652,1732295462290,-150.0,0.0009876,90]
[343030653,1732295462300,-150.0,0.00098762,90]
[343030654,1732295462310,-150.0,0.00098766,90]
[343030655,1732295462319,-150.0,0.00098766,90]
[343030656,1732295462330,-150.0,0.00098768,90]
[343030657,1732295462342,-150.0,0.00098768,90]
[343030658,1732295462355,-150.0,0.00098771,90]
[343030659,1732295462365,-150.0,0.00098777,90]
[343030660,1732295462375,-150.0,0.00098777,90]
[343030661,1732295462385,-150.0,0.00098782,90]
[343030662,1732295462395,-150.0,0.00098793,90]
[343030663,1732295462404,-5000.0,0.000988,120]
[343030664,1732295462413,-1000.0,0.000988,21]
[343030665,1732295462424,-150.0,0.00098801,90]
[343030666,1732295462436,-150.0,0.00098801,90]
[343030667,1732295462445,-150.0,0.00098811,90]
[343030668,1732295462455,-150.0,0.00098825,90]
[343030669,1732295462465,-150.0,0.00098826,90]
[343030670,1732295462475,-150.0,0.00098833,90]
[343030671,1732295462485,-150.0,0.00098834,90]
[343030672,1732295462495,-150.0,0.00098835,90]
[343030673,1732295462505,-150.0,0.00098839,90]
[343030674,1732295462515,-300.0,0.00098839,90]
[343030675,1732295462524,-300.0,0.0009884,90]
[343030676,1732295462533,-300.0,0.0009884,90]
[343030677,1732295462542,-150.0,0.00098841,90]
[343030678,1732295462552,-150.0,0.00098848,90]
[343030679,1732295462561,-150.0,0.00098849,90]
[343030680,1732295462570,-150.0,0.00098852,90]
[343030681,1732295462580,-150.0,0.00098858,90]
[343030682,1732295462591,-150.0,0.00098858,90]
[343030683,1732295462601,-150.0,0.00098859,90]
[343030684,1732295462611,-150.0,0.00098869,90]
[343030685,1732295462625,-300.0,0.00098873,90]
[343030686,1732295462636,-150.0,0.00098877,90]
[343030687,1732295462648,-150.0,0.00098885,90]
[343030688,1732295462658,-150.0,0.00098886,90]
[343030689,1732295462667,-150.0,0.00098893,90]
[343030690,1732295462677,-150.0,0.00098898,90]
[343030691,1732295462690,-150.0,0.00098898,90]
[343030692,1732295462702,-150.0,0.00098899,90]
[343030693,1732295462712,-50000.0,0.000989,120]
[343030694,1732295462721,-300.0,0.000989,36]
[343030695,1732295462731,-150.0,0.00098902,90]
[343030696,1732295462741,-150.0,0.00098903,90]
[343030697,1732295462751,-150.0,0.00098903,90]
[343030698,1732295462760,-150.0,0.00098913,90]
[343030699,1732295462769,-150.0,0.00098926,90]
[343030700,1732295462779,-150.0,0.00098932,90]
[343030701,1732295462789,-150.0,0.00098933,90]
[343030702,1732295462799,-150.0,0.00098935,90]
[343030703,1732295462809,-150.0,0.00098938,90]
[343030704,1732295462818,-150.0,0.00098947,90]
[343030705,1732295462828,-150.0,0.00098956,90]
[343030706,1732295462837,-150.0,0.00098961,90]
[343030707,1732295462847,-17562.2246726,0.00098988,16]
[343030708,1732295462857,-15655.278756,0.00098988,16]
[343030709,1732295462867,-13748.3328393,0.00098988,16]
[343030710,1732295462877,-11841.3869226,0.00098988,16]
[343030711,1732295462887,-9934.441006,0.00098988,16]
[343030712,1732295462897,-8027.4950893,0.00098988,16]
[343030713,1732295462907,-6695.8265538,0.00098988,16]
[343030714,1732295462917,-6364.0270533,0.00098988,16]
[343030715,1732295462927,-6032.2275527,0.00098988,16]
[343030716,1732295462939,-5700.4280522,0.00098988,16]
[343030717,1732295462948,-5368.6285517,0.00098988,16]
[343030718,1732295462958,-5036.8290512,0.00098988,16]
[343030719,1732295462968,-211.0,0.0009899,120]
[343030720,1732295462979,-150.0,0.00098991,90]
[343030721,1732295462989,-100000.0,0.00098997,96]
[343030722,1732295462998,-150.0,0.00098999,120]
[343030723,1732295463009,-150.0,0.00098999,120]
[343030724,1732295463020,-150.0,0.00098999,120]
[343030725,1732295463031,-378.72821,0.00098999,120]
[343030726,1732295463042,-942759.00869909,0.00099,45]
[343030727,1732295463232,-37861.92166253,0.00099,45]
[343030728,1732295463245,-4422.68703742,0.00099,45]
[343030729,1732295463257,-7766.50951092,0.00099,45]
[343030730,1732295463268,-2418.0105149,0.00099,45]
[343030731,1732295463296,-1769.04797869,0.000822,120]
[343030732,1732295463305,-500.0,0.0009589,120]
[343030733,1732295463315,-500.0,0.0009589,120]
[343030734,1732295463324,-500.0,0.0009589,120]
[343030735,1732295463334,-95530.95202134,0.00099,45]
[343030736,1732295463507,-2672.23054834,0.00099,45]
[343030737,1732295463519,-3312.9464718,0.00099,45]
[343030738,1732295463535,-500.0,0.0009589,120]
[343030739,1732295463546,-17669.56394865,0.00099,45]
[343030740,1732295463558,-13161.64971275,0.00099,45]
[343030741,1732295463617,-281.3614,0.000822,120]
[343030742,1732295463629,-1487.68657869,0.000822,120]
[343030743,1732295463639,-1769.04797869,0.000822,120]
[343030744,1732295463648,-892.39937039,0.000899,120]
[343030745,1732295463658,-361.68693161,0.0009589,120]
[343030746,1732295463667,-463.46995066,0.0009589,120]
[343030747,1732295463677,-500.0,0.0009589,120]
[343030748,1732295463690,-500.0,0.0009589,120]
[343030749,1732295463700,-500.0,0.0009589,120]
[343030750,1732295463710,-500.0,0.0009589,120]
[343030751,1732295463720,-12084.99788996,0.00099,45]
[343030752,1732295463732,-64728.31937876,0.00099,45]
[343030753,1732295463745,-6177.1539074,0.00099,45]
[343030754,1732295463757,-384.64000024,0.00099,45]
[343030755,1732295463769,-612.4330833,0.00099,45]
[343030756,1732295463788,-546.02766795,0.000822,120]
[343030757,1732295463800,-1223.01931074,0.000822,120]
[343030758,1732295463809,-12.48591876,0.0009589,120]
[343030759,1732295463821,-487.51408124,0.0009589,120]
[343030760,1732295463831,-107962.73395484,0.00099,45]
[343030761,1732295463919,-526.6052595,0.00090962,15]
[343030762,1732295463933,-2971.25064,0.00090962,15]
[343030763,1732295463946,-1437.10189036,0.00090962,15]
[343030764,1732295463958,-1197.2911943,0.0009579,2]
[343030765,1732295463968,-500.0,0.0009589,120]
[343030766,1732295463979,-500.0,0.0009589,120]
[343030767,1732295463988,-500.0,0.0009589,120]
[343030768,1732295463998,-500.0,0.0009589,120]
[343030769,1732295464009,-500.0,0.0009589,120]
[343030770,1732295464019,-500.0,0.0009589,120]
[343030771,1732295464029,-500.0,0.0009589,120]
[343030772,1732295464039,-500.0,0.0009589,120]
[343030773,1732295464049,-500.0,0.0009589,120]
[343030774,1732295464059,-500.0,0.0009589,120]
[343030775,1732295464069,-500.0,0.00095898,120]
[343030776,1732295464079,-500.0,0.00095999,120]
[343030777,1732295464089,-500.0,0.00095999,120]
[343030778,1732295464099,-259.31851388,0.00095999,120]
[343030779,1732295464108,-168059.63975403,0.00099,45]
[343030780,1732295464120,-776.06146747,0.00099,45]
[343030781,1732295464136,-433.48,0.00088941,60]
[343030782,1732295464146,-8769.83702419,0.00099,45]
[343030783,1732295464157,-1380.3,0.00099,45]
[343030784,1732295464169,-29954.45112645,0.00099,45]
[343030785,1732295464181,-49436.51265777,0.00099,45]
[343030786,1732295464192,-490881.03111432,0.00099,45]
[343030787,1732295464208,-233.78,0.0009589,120]
[343030788,1732295464218,-123721.50892179,0.00099,45]
[343030789,1732295464230,-6702.81487323,0.00099,45]
[343030790,1732295464242,-3107.86268504,0.00099,45]
[343030791,1732295464253,-5986.89,0.00099,45]
[343030792,1732295464265,-6285.62972486,0.00099,45]
[343030793,1732295464276,-410.256,0.00099,45]
[343030794,1732295464308,-7.79457857,0.00099,45]
[343030795,1732295464319,-1718.35547959,0.00099,45]
[343030796,1732295464332,-1500.0,0.00099,45]
[343030797,1732295464346,-2975.14639774,0.00099,45]
[343030798,1732295464468,-892.39937039,0.000899,120]
[343030799,1732295464479,-187.34069941,0.0009589,120]
[343030800,1732295464491,-312.65930059,0.0009589,120]
[343030801,1732295464500,-268.79613032,0.0009589,120]
[343030802,1732295464512,-231.20386968,0.0009589,120]
[343030803,1732295464521,-500.0,0.0009589,120]
[343030804,1732295464530,-500.0,0.0009589,120]
[343030805,1732295464540,-500.0,0.0009589,120]
[343030806,1732295464550,-500.0,0.0009589,120]
[343030807,1732295464559,-196.93,0.0009589,120]
[343030808,1732295464569,-500.0,0.0009589,120]
[343030809,1732295464579,-500.0,0.0009589,120]
[343030810,1732295464588,-500.0,0.0009589,120]
[343030811,1732295464598,-441.0633838,0.0009589,120]
[343030812,1732295464618,-4934.95778986,0.00095431,15]
[343030813,1732295464628,-58.9366162,0.0009589,120]
[343030814,1732295464637,-500.0,0.0009589,120]
[343030815,1732295464647,-455606.10559498,0.00099,45]
[343030816,1732295464658,-1975.1836707,0.00099,45]
[343030817,1732295464696,-23.59671888,0.00099,45]
[343030818,1732295464706,-1992.19192057,0.00099,45]
[343030819,1732295464718,-1470.43412314,0.00099,45]
[343030820,1732295491116,361.59938141,0.00045426,2]
[343030821,1732295498333,160.9425,0.00048183,120]
[343030822,1732295512830,169.72,0.00048484,2]
[343030823,1732295703256,900.0,0.00051,52]
[343030824,1732295724404,155.6045,0.0004896,120]
[343030825,1732295758547,1000.0,0.00051,15]
[343030826,1732295768573,1002.0,0.00051,25]
[343030827,1732295794094,1000.0,0.00051,2]
[343030828,1732295797495,1000.0,0.00051,3]
[343030829,1732295801514,1000.0,0.00051,4]
[343030830,1732295804521,492.0,0.00051,4]
[343030831,1732295832233,1000.0,0.00051,15]
[343030832,1732295834084,1000.0,0.00051,2]
[343030833,1732295835581,47.70694125,0.00051,2]
[343030834,1732295835606,952.29305875,0.00051,2]
[343030835,1732295835882,1000.0,0.00051,2]
[343030836,1732295847918,1000.0,0.00051,3]
[343030837,1732295868311,540.0,0.00051,30]
[343030838,1732295882820,1000.0,0.00051,20]
[343030839,1732295885625,1000.0,0.00051,10]
[343030840,1732295888522,1000.0,0.00051,3]
[343030841,1732295924087,295.47163351,0.00030137,2]
[343030842,1732296003194,900.0,0.00051,52]
[343030843,1732296080885,160.06,0.00041096,2]
[343030846,1732296242768,254.936424,0.00050941,5]
[343030849,1732296310204,1305.49462494,0.000351,30]
[343030850,1732296310228,2.13520846,0.000351,30]
[343030851,1732296341285,19791.2225394,0.00045492,30]
[343030852,1732296354465,7146.73314813,0.00025,2]
[343030853,1732296356284,269.411453,0.00014,2]
[343030854,1732296366706,200.540405,0.0001,2]
[343030855,1732296368761,223.10877437,0.000199,3]
[343030856,1732296413448,151.0,0.00051,120]
[343030857,1732296428607,1415.32675224,0.00041642,2]
[343030858,1732296428632,1122.77274115,0.00041642,2]
[343030859,1732296441272,2453.25036542,0.0001305,2]
[343030860,1732296448874,1558.74999999,0.0005,120]
[343030861,1732296453712,4273.48263464,0.0003,15]
[343030862,1732296453738,1396.3155724,0.0003,15]
[343030863,1732296462299,500.0,0.0005,120]
[343030864,1732296470078,10741.19907209,0.00045492,4]
[343030865,1732296476177,7511.9401688,0.0004,20]
[343030866,1732296476202,9408.2557412,0.0004,20]
[343030867,1732296476227,2762.84159268,0.0004,20]
[343030868,1732296488583,912.01149388,0.00023922,2]
[343030869,1732296510089,1131.90220438,0.00051097,2]
[343030870,1732296510169,4601.50045026,0.0004,7]
[343030871,1732296510197,29866.57322328,0.0004,7]
[343030872,1732296513138,11096.02345494,0.00037473,3]
[343030873,1732296514932,263.00113095,0.0005,2]
[343030874,1732296516796,1070150.912395,0.000476,30]
[343030875,1732296522369,14088.08093829,0.00042,30]
[343030878,1732296566145,-544.32797352,0.00051097,2]
[343030879,1732296566169,-62.03463928,0.00051115,2]
[343030880,1732296584090,162.3,0.00050909,2]
[343030900,1732296631084,2263.80440874,0.00050988,2]
[343030905,1732296632735,-1535.967,0.0005107,2]
[343030906,1732296632820,-938.99897738,0.0005107,2]
[343030907,1732296632830,-2474.96597736,0.00051088,2]
[343030908,1732296632840,-482.2933342,0.00051115,2]